bitfinex-derivatives/quotes_SOLF0:USTF0_20260208
["timestamp","ask_amount","ask_price","bid_price","bid_amount"]
[1770555592652,7.52861453,88.162,88.09,10.2257]
[1770555593246,10.2176,88.161,88.09,10.2257]
[1770555593449,7.52861453,88.16,88.09,10.2257]
[1770555593658,7.52861453,88.19,88.116,10.2227]
[1770555594045,7.52861453,88.19,88.034,159.1678]
[1770555594243,7.52861453,88.19,88.034,159.168]
[1770555594549,7.56574011,88.176,88.1,10.2246]
[1770555594754,7.56574011,88.176,88.059,159.1239]
[1770555595354,7.56574011,88.176,88.104,10.2241]
[1770555595751,7.56574011,88.176,88.121,10.2222]
[1770555595952,7.30231909,88.201,88.121,10.2222]
[1770555596659,7.30231909,88.197,88.107,10.2237]
[1770555597158,7.30231909,88.195,88.107,10.2237]
[1770555597758,1.97428886,88.198,88.094,159.0597]
[1770555597759,7.27766212,88.198,88.094,159.0597]
[1770555598054,7.27766212,88.198,88.083,159.0801]
[1770555598252,7.27766212,88.198,88.025,159.1851]
[1770555598253,7.27766212,88.196,88.065,159.1132]
[1770555599059,7.27766212,88.193,88.046,159.1471]
[1770555599253,7.27766212,88.193,88.032,20.465]
[1770555599254,7.27766212,88.193,88.036,159.1643]
[1770555599749,7.27766212,88.177,88.04,159.1568]
[1770555599955,7.27766212,88.177,87.975,159.2745]
[1770555599956,7.27766212,88.177,88.031,159.1732]
[1770555600150,7.27766212,88.177,88.023,159.1885]
[1770555600353,158.8625,88.205,88.067,10.2284]
[1770555600354,7.49337624,88.158,88.067,10.2284]
[1770555600952,7.49337624,88.154,88.067,10.2284]
[1770555601255,7.49337624,88.154,87.995,20.4735]
[1770555601859,226.94,88.21,88.015,159.2026]
[1770555601860,7.4273653,88.152,88.015,159.2026]
[1770555602460,7.4273653,88.147,88.061,10.2291]
[1770555603751,7.35014005,88.143,88.077,10.2272]
[1770555605954,7.41796665,88.154,88.077,10.2272]
[1770555607063,7.41796665,88.134,88.06,10.2292]
[1770555608271,7.41796665,88.134,88.071,10.228]
[1770555608463,7.41796665,88.134,88.033,159.1695]
[1770555609557,7.40233521,88.154,88.048,159.1436]
[1770555609759,7.40233521,88.154,88.042,159.1548]
[1770555610257,7.40233521,88.154,88.051,159.1383]
[1770555610857,7.36994932,88.172,88.111,10.2232]
[1770555611568,7.36994932,88.207,88.083,20.453]
[1770555611753,7.36994932,88.207,88.067,159.1088]
[1770555611953,7.36994932,88.207,88.061,159.1205]
[1770555612157,7.38845242,88.172,88.053,20.4602]
[1770555612557,7.38845242,88.138,88.023,20.4671]
[1770555612762,7.38845242,88.138,88.03,159.1757]
[1770555613265,7.38845242,88.138,88.075,10.2275]
[1770555615268,7.54046967,88.182,88.109,10.2235]
[1770555615470,7.54046967,88.182,88.037,159.1629]
[1770555615672,7.54046967,88.182,88.038,159.162]
[1770555615871,7.52719159,88.168,88.09,10.2257]
[1770555616463,7.52719159,88.163,88.075,10.2274]
[1770555617476,7.52719159,88.146,87.997,159.2355]
[1770555617771,7.52719159,88.144,87.998,159.2342]
[1770555617976,7.52719159,88.144,87.927,159.363]
[1770555617977,7.48588658,88.139,88.024,159.1862]
[1770555618166,7.48588658,88.139,87.996,159.2372]
[1770555618470,7.48588658,88.139,87.945,159.3295]
[1770555618471,7.48588658,88.139,87.999,159.2311]
[1770555618867,7.48588658,88.139,88.069,10.2282]
[1770555619862,7.48588658,88.139,87.985,45.49]
[1770555620072,7.48588658,88.139,88.021,159.1916]
[1770555620475,7.63994495,88.134,88.056,10.2297]
[1770555620682,7.63994495,88.134,87.975,28.0975286]
[1770555620683,7.63994495,88.134,87.998,159.2341]
[1770555621280,7.63994495,88.126,87.988,159.2515]
[1770555621580,7.63994495,88.126,87.98,20.4771]
[1770555622379,7.58604146,88.103,87.934,28.0975286]
[1770555622573,7.58604146,88.12,87.986,159.2555]
[1770555622974,7.58604146,88.106,87.984,20.4761]
[1770555623772,20.4327,88.172,87.896,35.32236808]
[1770555623773,7.58604146,88.103,87.952,159.3161]
[1770555623984,7.57345226,88.12,88.014,159.2043]
[1770555624180,7.57345226,88.12,88.018,159.197]
[1770555624487,7.57345226,88.12,88.003,159.224]
[1770555624678,7.57345226,88.12,87.964,159.295]
[1770555624885,7.57345226,88.12,88.07,10.2281]
[1770555625782,7.57345226,88.12,88.005,159.2202]
[1770555626580,7.57345226,88.12,88.012,159.2088]
[1770555626975,7.57345226,88.12,88.019,159.1962]
[1770555627176,7.57345226,88.12,87.981,34.13]
[1770555627381,7.58203394,88.194,88.042,159.1535]
[1770555627781,7.58203394,88.182,88.057,159.1271]
[1770555627981,7.58203394,88.182,88.006,159.2183]
[1770555627982,7.58203394,88.182,88.049,159.1416]
[1770555628588,158.8246,88.226,88.049,159.1416]
[1770555628589,7.58385401,88.169,88.05,20.4608]
[1770555629090,7.58385401,88.144,88.022,159.1902]
[1770555629786,7.65617772,88.142,88.032,159.1729]
[1770555629990,7.65617772,88.142,88.033,159.1706]
[1770555631288,7.65617772,88.18,88.103,10.2242]
[1770555631490,7.65617772,88.18,88.044,159.1497]
[1770555631788,7.65617772,88.18,88.034,159.1687]
[1770555632186,7.64641879,88.166,88.085,10.2263]
[1770555632382,7.64641879,88.166,88.026,20.4664]
[1770555632582,7.64641879,88.166,88.018,159.1971]
[1770555633189,7.64641879,88.139,88.072,10.2277]
[1770555634884,7.61076286,88.165,88.096,10.225]
[1770555635287,7.61076286,88.165,87.988,194.57376808]
[1770555635288,7.61076286,88.165,88.059,159.1233]
[1770555635890,7.61076286,88.165,88.09,10.2257]
[1770555636293,7.61076286,88.165,88.051,159.1383]
[1770555636489,7.61076286,88.165,88.1,10.2245]
[1770555636987,7.65549383,88.16,88.088,10.226]
[1770555638383,10.2194,88.145,88.076,10.2273]
[1770555638689,7.63560698,88.144,88.076,10.2273]
[1770555639090,10.58335099,88.184,88.013,20.4693]
[1770555639091,7.63560698,88.142,88.064,10.2287]
[1770555639284,7.63560698,88.142,88.013,20.4693]
[1770555639687,7.63560698,88.124,87.994,159.2417]
[1770555640392,7.60808242,88.12,87.983,20.4763]
[1770555641193,7.60808242,88.099,88.026,10.2332]
[1770555641889,7.6056475,88.097,88.016,10.2343]
[1770555643095,7.6056475,88.097,87.955,28.0975286]
[1770555643096,7.6056475,88.097,88.031,10.2326]
[1770555644296,7.6056475,88.097,88.042,10.2313]
[1770555644596,158.9292,88.168,88.042,10.2313]
[1770555644597,7.62330716,88.114,88.042,10.2313]
[1770555645697,7.62330716,88.114,88.003,159.2246]
[1770555646399,7.62330716,88.114,87.987,175.0]
[1770555646400,7.62330716,88.114,88.0,20.4725]
[1770555646994,7.62330716,88.114,88.059,10.2293]
[1770555647397,7.60410603,88.159,88.084,10.2264]
[1770555648700,10.2181,88.157,88.084,10.2264]
[1770555648895,7.63358293,88.156,88.084,10.2264]
[1770555649491,7.63358293,88.154,88.084,10.2264]
[1770555650296,7.63358293,88.154,88.095,10.2251]
[1770555650799,7.63358293,88.154,88.105,10.2239]
[1770555651400,7.65532428,88.179,88.073,159.0974]
[1770555652596,7.65532428,88.179,88.12,10.2222]
[1770555654597,7.63677281,88.216,88.074,20.4553]
[1770555654994,7.63677281,88.216,88.075,159.0952]
[1770555655395,7.63677281,88.214,88.127,10.2215]
[1770555655800,7.63677281,88.214,88.074,20.4553]
[1770555656200,7.6591832,88.199,88.116,10.2227]
[1770555657703,7.6591832,88.192,88.116,10.2227]
[1770555658099,7.64802672,88.222,88.096,159.0571]
[1770555658293,7.64802672,88.222,88.089,159.0696]
[1770555659102,7.64802672,88.222,88.081,159.0842]
[1770555659406,7.64802672,88.222,88.086,159.0746]
[1770555660308,7.64802672,88.222,88.125,10.2217]
[1770555660497,7.64802672,88.222,88.12,159.013]
[1770555660703,7.64802672,88.222,88.042,159.1548]
[1770555660704,7.63896217,88.268,88.149,158.9599]
[1770555660898,7.63896217,88.268,88.14,158.9779]
[1770555661098,7.63896217,88.287,88.118,159.016]
[1770555661396,7.63896217,88.287,88.104,159.0415]
[1770555661397,7.63896217,88.287,88.146,158.9654]
[1770555661601,7.63896217,88.287,88.14,158.9769]
[1770555661802,7.63896217,88.287,88.131,158.9937]
[1770555662002,7.63896217,88.287,88.122,159.0103]
[1770555662202,1.97281708,88.293,88.052,671.86576808]
[1770555662203,7.59556769,88.258,88.114,159.0235]
[1770555662405,7.59556769,88.258,88.112,159.0285]
[1770555662603,7.59556769,88.234,88.144,10.2194]
[1770555662804,7.59556769,88.234,88.114,159.0249]
[1770555663003,7.59556769,88.234,88.115,159.0221]
[1770555663310,7.59556769,88.234,88.156,10.218]
[1770555664405,8.64543446,88.296,88.099,159.0507]
[1770555664608,7.64472062,88.274,88.193,10.2137]
[1770555665408,7.64472062,88.271,88.193,10.2137]
[1770555666010,10.2053,88.267,88.179,10.2154]
[1770555666202,226.9,88.297,88.179,10.2154]
[1770555666203,7.66376922,88.266,88.179,10.2154]
[1770555667800,7.63866822,88.276,88.146,158.9667]
[1770555668001,7.63866822,88.276,88.151,158.9579]
[1770555668206,7.63866822,88.276,88.143,158.9715]
[1770555668511,7.63866822,88.27,88.157,158.9469]
[1770555668711,7.63866822,88.27,88.149,158.9613]
[1770555669513,7.63866822,88.27,88.188,10.2144]
[1770555672615,7.66949884,88.268,88.188,10.2144]
[1770555673015,7.66949884,88.268,88.044,28.0975286]
[1770555673016,7.66902433,88.292,88.165,158.9315]
[1770555673213,7.66902433,88.292,88.159,158.942]
[1770555673613,7.66902433,88.29,88.208,10.212]
[1770555674604,7.64306128,88.284,88.208,10.212]
[1770555676317,7.6549453,88.304,88.188,158.8898]
[1770555677117,7.6549453,88.304,88.182,158.9006]
[1770555677318,7.6549453,88.304,88.185,158.8962]
[1770555677719,7.6549453,88.304,88.227,10.2098]
[1770555678419,7.6549453,88.304,88.242,10.208]
[1770555681122,7.6549453,88.304,88.229,10.2096]
[1770555682123,7.6549453,88.304,88.241,10.2082]
[1770555685222,7.63900987,88.301,88.227,10.2098]
[1770555685824,7.63900987,88.297,88.227,10.2098]
[1770555686425,7.65415567,88.292,88.165,20.434]
[1770555687131,1.9716658,88.333,88.132,20.4417]
[1770555687132,7.65415567,88.275,88.132,20.4417]
[1770555687726,7.65415567,88.254,88.174,10.2159]
[1770555687913,7.65415567,88.254,88.113,159.0256]
[1770555688121,7.63103078,88.228,88.156,10.2181]
[1770555689125,14.05685307,88.318,88.156,10.2181]
[1770555689126,7.63103078,88.225,88.156,10.2181]
[1770555689328,7.63103078,88.225,88.089,159.0692]
[1770555689728,7.63103078,88.209,88.083,159.0805]
[1770555689928,7.63103078,88.209,88.073,159.0988]
[1770555690130,7.63103078,88.209,88.063,159.1157]
[1770555690328,7.68932571,88.205,88.068,159.1071]
[1770555690630,7.68932571,88.261,88.106,159.0389]
[1770555690931,7.68932571,88.248,88.099,159.0508]
[1770555691126,7.68932571,88.248,88.149,10.2189]
[1770555691328,7.68932571,88.248,88.036,159.1644]
[1770555691329,7.68932571,88.248,88.135,158.9856]
[1770555691534,7.68932571,88.248,88.125,159.0037]
[1770555691722,7.68932571,88.248,88.173,10.2161]
[1770555693822,7.7168541,88.295,88.156,158.9475]
[1770555694027,7.7168541,88.295,88.107,159.0366]
[1770555694028,7.7168541,88.295,88.114,159.0239]
[1770555694230,7.7168541,88.295,88.172,158.9194]
[1770555694429,7.7168541,88.295,88.211,10.2117]
[1770555695721,7.7168541,88.295,88.137,20.4406]
[1770555695722,7.7168541,88.295,88.224,10.2102]
[1770555695924,7.7168541,88.295,88.195,158.878]
[1770555696127,7.7168541,88.295,88.197,158.875]
[1770555696426,7.7168541,88.295,88.198,158.8732]
[1770555696633,7.7168541,88.295,88.193,158.8816]
[1770555696833,7.7168541,88.295,88.197,158.8749]
[1770555697126,7.7168541,88.295,88.145,34.04]
[1770555697436,7.72283654,88.33,88.193,158.8815]
[1770555697635,7.72283654,88.33,88.199,158.8708]
[1770555698134,7.7465938,88.328,88.238,10.2086]
[1770555699731,10.1984,88.327,88.238,10.2086]
[1770555699937,7.75248062,88.326,88.238,10.2086]
[1770555700734,7.75248062,88.323,88.238,10.2086]
[1770555701736,7.75248062,88.321,88.238,10.2086]
[1770555702332,10.1993,88.319,88.238,10.2086]
[1770555702540,226.66,88.363,88.238,10.2086]
[1770555702541,7.73139161,88.318,88.238,10.2086]
[1770555702738,7.73139161,88.318,88.226,10.21]
[1770555702928,7.73139161,88.318,88.2,158.8696]
[1770555703132,7.73139161,88.318,88.194,158.8806]
[1770555703434,7.73139161,88.318,88.239,10.2084]
[1770555704029,7.71962154,88.316,88.239,10.2084]
[1770555704633,7.71962154,88.31,88.239,10.2084]
[1770555705733,7.71128777,88.308,88.239,10.2084]
[1770555706643,7.71128777,88.308,88.222,10.2105]
[1770555707438,7.71128777,88.306,88.222,10.2105]
[1770555707842,7.74804809,88.304,88.208,10.2121]
[1770555708240,7.74804809,88.304,88.148,20.438]
[1770555708740,7.74804809,88.278,88.197,10.2133]
[1770555708945,7.74804809,88.278,88.125,27.45832328]
[1770555708946,7.74804809,88.278,88.125,159.0049]
[1770555709445,7.74804809,88.264,88.178,10.2155]
[1770555710036,7.71977167,88.253,88.166,10.2169]
[1770555710541,7.71977167,88.253,88.117,20.4451]
[1770555710749,7.71977167,88.237,88.095,159.059]
[1770555711038,7.71977167,88.237,88.102,159.046]
[1770555711240,7.71977167,88.236,88.111,159.0293]
[1770555711441,7.71977167,88.236,88.084,27.45832328]
[1770555711442,7.71977167,88.236,88.113,159.0265]
[1770555712045,7.71977167,88.236,88.121,159.0116]
[1770555712239,7.69011498,88.256,88.17,10.2165]
[1770555713035,7.69011498,88.256,88.18,10.2152]
[1770555714134,7.69011498,88.256,88.13,158.9952]
[1770555714338,7.64018072,88.302,88.132,34.04]
[1770555714541,7.64018072,88.302,88.169,158.9245]
[1770555714737,7.64018072,88.299,88.21,10.2118]
[1770555715744,7.64018072,88.299,88.14,34.04]
[1770555715745,7.64018072,88.299,88.224,10.2102]
[1770555715944,7.64018072,88.299,88.191,158.8858]
[1770555716153,7.81230754,88.318,88.237,10.2086]
[1770555716354,7.81230754,88.318,88.206,158.859]
[1770555716654,7.81230754,88.355,88.223,158.8267]
[1770555717245,7.81230754,88.355,88.171,192.9621]
[1770555717246,7.81230754,88.355,88.265,10.2054]
[1770555719754,7.81230754,88.355,88.171,158.9221]
[1770555719755,7.81230754,88.355,88.243,158.7922]
[1770555720148,7.81230754,88.355,88.284,10.2032]
[1770555721853,7.81230754,88.355,88.271,10.2047]
[1770555722558,7.71704256,88.353,88.222,158.8295]
[1770555722945,7.71704256,88.347,88.267,10.2052]
[1770555723153,7.71704256,88.347,88.229,158.8165]
[1770555723656,7.71704256,88.347,88.273,10.2045]
[1770555724751,7.75691834,88.345,88.209,158.8535]
[1770555725152,7.75691834,88.345,88.206,20.4247]
[1770555725553,7.75691834,88.326,88.246,10.2076]
[1770555726557,7.69148525,88.321,88.246,10.2076]
[1770555726761,7.69148525,88.321,88.234,10.209]
[1770555727059,7.69148525,88.321,88.176,158.913]
[1770555727361,7.69148525,88.302,88.222,10.2104]
[1770555727953,7.68424814,88.294,88.222,10.2104]
[1770555728654,7.68424814,88.292,88.21,10.2117]
[1770555729251,7.68424814,88.284,88.21,10.2117]
[1770555730164,7.68424814,88.284,88.156,158.9489]
[1770555730165,7.68424814,88.284,88.179,158.9064]
[1770555730757,7.68424814,88.284,88.168,158.927]
[1770555731150,7.70582377,88.302,88.184,158.8983]
[1770555731355,7.70582377,88.302,88.192,158.8837]
[1770555731652,7.70582377,88.322,88.202,158.8653]
[1770555732661,7.70582377,88.322,88.247,10.2075]
[1770555733866,7.71767157,88.32,88.247,10.2075]
[1770555734464,7.71767157,88.32,88.147,11.33]
[1770555734465,7.71767157,88.32,88.257,10.2063]
[1770555735262,7.69759668,88.349,88.271,10.2047]
[1770555735465,7.69759668,88.347,88.207,179.2811]
[1770555736161,7.69232693,88.344,88.259,10.2062]
[1770555736360,7.69232693,88.344,88.19,11.33]
[1770555736555,7.69232693,88.344,88.189,11.33]
[1770555737066,20.80381348,88.398,88.177,20.4313]
[1770555737067,7.69232693,88.316,88.232,10.2092]
[1770555737467,7.69232693,88.316,88.242,10.2081]
[1770555739568,7.69232693,88.316,88.259,10.2062]
[1770555741065,7.69232693,88.316,88.212,158.847]
[1770555741270,7.69232693,88.316,88.214,158.8445]
[1770555741565,7.69232693,88.316,88.21,20.4236]
[1770555741767,7.69232693,88.316,88.265,10.2054]
[1770555742678,7.69232693,88.316,88.243,10.2079]
[1770555742975,7.69232693,88.316,88.171,158.9219]
[1770555743371,7.72311079,88.285,88.209,10.2119]
[1770555743971,7.65221302,88.283,88.209,10.2119]
[1770555744174,7.65221302,88.283,88.198,10.2132]
[1770555744567,7.65221302,88.283,88.114,34.04]
[1770555744568,7.65221302,88.267,88.181,10.2151]
[1770555744969,7.65221302,88.267,88.118,159.0169]
[1770555745573,7.65221302,88.265,88.131,158.9939]
[1770555745774,7.65221302,88.265,88.132,158.9916]
[1770555746273,7.65221302,88.265,88.18,10.2152]
[1770555746575,7.65221302,88.265,88.149,158.9602]
[1770555746968,7.65221302,88.265,88.202,10.2127]
[1770555747573,7.65221302,88.265,88.191,10.214]
[1770555747765,7.70825322,88.263,88.131,158.9925]
[1770555748372,7.70825322,88.261,88.179,10.2154]
[1770555749873,7.70825322,88.261,88.189,10.2142]
[1770555751377,7.65956275,88.256,88.189,10.2142]
[1770555752084,158.6643,88.315,88.129,20.4423]
[1770555752085,7.68161434,88.254,88.129,20.4423]
[1770555753184,7.68161434,88.25,88.129,20.4423]
[1770555754472,7.6715111,88.232,88.165,10.217]
[1770555755680,7.6715111,88.228,88.165,10.217]
[1770555756985,7.6715111,88.228,88.178,10.2155]
[1770555757585,7.6715111,88.228,88.121,20.4444]
[1770555757987,7.37242006,88.226,88.121,20.4444]
[1770555758290,7.37242006,88.226,88.172,10.2162]
[1770555758678,7.37242006,88.226,88.121,20.4444]
[1770555759780,7.37242006,88.226,88.162,10.2173]
[1770555761584,7.37242006,88.226,88.121,20.4444]
[1770555761585,7.37242006,88.226,88.124,11.33]
[1770555761780,7.37242006,88.226,88.069,34.04]
[1770555761781,7.37242006,88.226,88.126,11.33]
[1770555762082,7.37242006,88.226,88.182,10.215]
[1770555762583,7.37242006,88.226,88.128,31.7727]
[1770555762785,7.37242006,88.226,88.126,170.3319]
[1770555763385,7.37242006,88.226,88.182,10.2151]
[1770555763688,7.50854287,88.256,88.139,158.9792]
[1770555764392,7.49546512,88.254,88.191,10.214]
[1770555764580,7.49546512,88.254,88.147,158.9651]
[1770555764775,7.49546512,88.254,88.151,20.4373]
[1770555765385,7.49546512,88.249,88.181,10.2151]
[1770555765589,7.49546512,88.249,88.122,20.444]
[1770555765982,7.51299051,88.228,88.169,10.2166]
[1770555766986,3.87269314,88.185,88.071,3.26463896]
[1770555767187,3.87269314,88.185,88.073,3.26463896]
[1770555767387,3.87269314,88.21,88.123,3.26463896]
[1770555767890,3.87269314,88.21,88.14,3.94833028]
[1770555768985,3.87269314,88.21,88.07,11.33]
[1770555768986,3.87269314,88.239,88.162,3.94833028]
[1770555769886,3.87269314,88.239,88.142,3.94833028]
[1770555770092,3.87269314,88.236,88.099,3.94833028]
[1770555770284,3.87269314,88.199,88.103,3.94833028]
[1770555770683,3.87269314,88.199,88.041,3.94833028]
[1770555770886,3.87269314,88.155,88.065,3.94833028]
[1770555771886,3.87269314,88.155,88.068,3.94833028]
[1770555772392,3.87269314,88.155,88.092,3.94833028]
[1770555772692,3.87269314,88.25,88.092,3.94833028]
[1770555773379,20.41,88.27,88.127,10.2214]
[1770555773380,3.87269314,88.21,88.127,10.2214]
[1770555773989,3.87269314,88.208,88.127,10.2214]
[1770555775686,3.87269314,88.206,88.127,10.2214]
[1770555776094,10.2128,88.202,88.127,10.2214]
[1770555776394,3.87269314,88.201,88.115,10.2228]
[1770555776788,3.87269314,88.186,88.115,10.2228]
[1770555777289,3.87269314,88.179,88.102,10.2243]
[1770555777888,3.87269314,88.179,88.0,260.86]
[1770555777889,3.87269314,88.179,88.061,3.84932627]
[1770555778895,3.87269314,88.167,88.099,10.2247]
[1770555779398,3.87269314,88.167,88.087,3.84932627]
[1770555779791,3.87269314,88.167,88.11,10.2234]
[1770555779992,3.87269314,88.167,88.087,3.84932627]
[1770555780495,3.87269314,88.165,88.098,10.2247]
[1770555781394,3.87269314,88.162,88.069,3.93647956]
[1770555782199,3.87269314,88.136,88.077,10.2272]
[1770555782399,3.87269314,88.136,88.051,3.87430763]
[1770555782894,3.87269314,88.136,88.076,10.2273]
[1770555783094,3.87269314,88.136,88.071,3.87430763]
[1770555784798,3.87269314,88.136,88.086,10.2261]
[1770555785894,3.64725788,88.157,88.094,10.2252]
[1770555789293,3.64725788,88.155,88.094,10.2252]
[1770555790096,3.64725788,88.155,88.094,14.09699508]
[1770555792491,3.64725788,88.154,88.057,3.87779064]
[1770555793098,2.05187718,88.132,88.057,3.87779064]
[1770555793598,2.05187718,88.132,88.08,10.2269]
[1770555793804,2.05187718,88.132,88.08,14.14626625]
[1770555793995,2.03431377,88.178,88.08,3.91936625]
[1770555794499,2.03431377,88.178,88.009,34.04]
[1770555794500,2.03431377,88.15,88.045,3.91936625]
[1770555794897,2.03431377,88.149,88.045,3.91936625]
[1770555795801,2.03431377,88.123,88.053,10.23]
[1770555796399,2.03431377,88.123,88.053,14.14936625]
[1770555796606,2.03431377,88.123,88.002,20.4719]
[1770555796607,1.66713132,88.142,88.06,3.91936625]
[1770555797602,1.66713132,88.14,88.079,10.227]
[1770555799903,1.84862303,88.136,88.06,3.91936625]
[1770555800801,1.84862303,88.131,88.06,3.91936625]
[1770555801800,1.82809313,88.126,88.06,3.91936625]
[1770555804601,1.82809313,88.126,88.062,10.229]
[1770555806098,10.2203,88.138,88.067,3.91936625]
[1770555806302,1.87640069,88.157,88.067,3.91936625]
[1770555807212,1.87640069,88.147,88.067,3.91936625]
[1770555808109,1.85935046,88.131,88.067,3.91936625]
[1770555809711,10.2225,88.119,88.067,3.91936625]
[1770555810910,10.2227,88.117,88.067,3.91936625]
[1770555811214,11.99709881,88.117,88.067,3.91936625]
[1770555813315,1.76505625,88.114,88.05,3.91936625]
[1770555814112,1.78471358,88.112,88.05,3.91936625]
[1770555814318,1.78471358,88.111,88.05,3.91936625]
[1770555814916,10.2244,88.102,88.05,3.91936625]
[1770555815118,1.78471358,88.101,88.05,3.91936625]
[1770555815316,1.78471358,88.101,87.976,159.2738]
[1770555815317,10.2264,88.085,88.035,3.91936625]
[1770555815616,1.78471358,88.118,88.035,3.91936625]
[1770555816817,10.2229,88.116,88.058,4.00725025]
[1770555817015,1.78471358,88.118,88.058,4.00725025]
[1770555817218,10.2227,88.117,88.058,4.00725025]
[1770555817418,12.11163894,88.117,88.058,4.00725025]
[1770555817616,1.88893894,88.116,88.001,4.00725025]
[1770555818116,1.95674406,88.114,88.001,4.00725025]
[1770555818315,1.95674406,88.114,87.976,159.2731]
[1770555818316,10.2258,88.09,88.02,4.00725025]
[1770555819218,10.2246,88.1,88.024,4.00725025]
[1770555819420,1.95674406,88.1,88.024,4.00725025]
[1770555819920,10.2257,88.091,88.024,4.00725025]
[1770555820617,1.88387023,88.116,88.027,4.00725025]
[1770555820811,1.88387023,88.115,88.027,4.00725025]
[1770555821717,1.88387023,88.145,88.05,4.00725025]
[1770555822016,1.89234598,88.143,88.05,4.00725025]
[1770555822208,20.4296,88.185,88.05,4.00725025]
[1770555822209,1.89234598,88.141,88.05,4.00725025]
[1770555822408,1.89234598,88.139,88.05,4.00725025]
[1770555822612,158.9274,88.169,88.05,4.00725025]
[1770555822613,1.89234598,88.137,88.05,4.00725025]
[1770555822810,1.89234598,88.101,88.032,4.00725025]
[1770555824118,12.11694598,88.101,88.035,4.00725025]
[1770555824923,20.4358,88.158,88.035,4.00725025]
[1770555824924,1.84066071,88.098,88.035,4.00725025]
[1770555825725,10.2265,88.084,88.035,4.00725025]
[1770555826224,1.8586199,88.083,88.035,4.00725025]
[1770555827623,1.8586199,88.083,88.019,4.00725025]
[1770555827624,10.2274,88.076,88.019,4.00725025]
[1770555828018,12.0221991,88.076,88.019,4.00725025]
[1770555828418,10.2285,88.067,88.019,4.00725025]
[1770555828819,1.7947991,88.067,88.001,4.00725025]
[1770555829013,10.2296,88.057,88.001,4.00725025]
[1770555829727,10.2294,88.05,88.001,4.00725025]
[1770555830323,10.2281,88.061,88.001,4.00725025]
[1770555830622,1.74943634,88.072,88.001,4.00725025]
[1770555830826,10.2271,88.07,88.001,4.00725025]
[1770555831428,10.2296,88.049,87.985,4.00725025]
[1770555832826,11.98462343,88.049,87.985,4.00725025]
[1770555833121,1.75502343,88.048,87.985,4.00725025]
[1770555833320,10.2298,88.047,87.985,4.00725025]
[1770555833722,1.75502343,88.046,87.985,4.00725025]
[1770555834317,1.67497066,88.036,87.985,4.00725025]
[1770555834923,10.2304,88.042,87.985,4.00725025]
[1770555835522,1.67497066,88.039,87.985,4.00725025]
[1770555835924,1.7051171,88.078,87.985,4.00725025]
[1770555836122,1.7051171,88.025,87.949,4.00725025]
[1770555836817,1.7051171,88.023,87.951,4.00725025]
[1770555837823,10.2327,88.022,87.951,4.00725025]
[1770555838324,1.7051171,88.023,87.954,4.00725025]
[1770555838825,10.2313,88.034,87.954,4.00725025]
[1770555839528,10.23,88.045,87.967,4.00725025]
[1770555840128,10.23,88.045,87.912,159.3731]
[1770555840129,1.65882479,88.037,87.969,4.00725025]
[1770555840326,1.65882479,88.037,87.906,4.00725025]
[1770555840830,1.65882479,88.014,87.946,4.00725025]
[1770555841924,1.67059056,87.989,87.919,4.00725025]
[1770555843332,10.2367,87.987,87.919,4.00725025]
[1770555843740,1.67059056,87.986,87.919,4.00725025]
[1770555844431,1.6090041,87.974,87.919,4.00725025]
[1770555845432,10.2392,87.966,87.919,4.00725025]
[1770555845634,1.6090041,87.992,87.919,4.00725025]
[1770555846232,1.64477298,87.977,87.919,4.00725025]
[1770555848936,1.644895,87.993,87.919,4.00725025]
[1770555849739,11.882795,87.978,87.919,4.00725025]
[1770555854146,10.2379,87.978,87.919,4.00725025]
[1770555855750,10.2379,87.978,87.923,3.64287227]
[1770555856350,10.2364,87.99,87.923,3.64287227]
[1770555857854,10.2364,87.99,87.927,3.64287227]
[1770555858556,10.2364,87.99,87.93,3.64287227]
[1770555858747,10.2375,87.981,87.93,3.64287227]
[1770555860750,1.81124854,87.994,87.93,3.64287227]
[1770555862857,1.81547952,87.988,87.93,3.64287227]
[1770555863256,1.81547952,87.988,87.916,3.64287227]
[1770555863655,1.81547952,87.984,87.916,3.64287227]
[1770555864760,1.8037009,87.981,87.916,3.64287227]
[1770555865758,1.8037009,87.979,87.916,3.64287227]
[1770555866459,1.80703615,87.966,87.905,0.50196276]
[1770555867163,1.80703615,87.966,87.905,4.14483503]
[1770555869366,1.82233267,88.011,87.911,3.64287227]